Cogmind - Beta 12 @@@ ROGUE MODE // 2023.11.24 @ 14:23:32 Player: Senator Honkstrong Result: Destroyed by 8R-AWN with 8R-AWN's Boregun Performance ------------- Evolutions (0) 0 Regions Visited (3) 600 Robots Destroyed (49) 245 Value Destroyed (559) 559 Prototype IDs (28) 560 Alien Tech Used (0) 0 Bonus (-361) -361 TOTAL SCORE: 1603 Bonus ------- Aligned with FarCom 300 Friendly Fire -661 Cogmind --------- Core Integrity 0/250 Matter 221/300 Energy 136/140 System Corruption 0% Temperature Warm (113) Movement Walking (190) Ox1 Location -10/Exiles Parts ------- > --- POWER (1) -------- Light Deuterium Engine > --- PROPULSION (2) --- Improved Aluminum Leg Improved Aluminum Leg > --- UTILITY (2) ------ Large Storage Unit Improved Light Armor Plating > --- WEAPON (2) ------- Light Assault Rifle Light Assault Rifle > --- INVENTORY (15) --- Aluminum Leg Light Armor Plating Medium Laser Light Assault Rifle Light Assault Rifle Mini Grenade Launcher Peak State ------------ > --- POWER ------------ Light Deuterium Engine > --- PROPULSION ------- Improved Aluminum Leg Improved Aluminum Leg > --- UTILITY ---------- Large Storage Unit Targeting Computer > --- WEAPON ----------- Medium Laser Assault Rifle > --- INVENTORY -------- Light Deuterium Engine Aluminum Leg Improved Aluminum Leg Improved Aluminum Leg Heat Sink Experimental Sensor Array Light Armor Plating Improved Light Armor Plating Light Assault Rifle Light Assault Rifle Light Assault Rifle Light Assault Rifle Mini Grenade Launcher Datajack Mining Laser [Rating: 14] Favorites ----------- Power Improved Ion Engine Engine Improved Ion Engine Propulsion Improved Aluminum Leg Leg Improved Aluminum Leg Utility Large Storage Unit Storage Large Storage Unit Processor Targeting Computer Protection Improved Light Armor Plating Weapon Medium Laser Energy Gun Medium Laser Ballistic Gun Assault Rifle Launcher Mini Grenade Launcher Special Weapon Mining Laser Build | -11 -10 -10 -10 ------- Run | Jun Mat Min Exi Slots Evolved . | . . . . Power . | . . . . Propulsion . | . . . . Utility . | . . . . Weapon . | . . . . Parts Attached 30 | 6 13 2 9 Power 6 | 1 2 2 1 Engine 6 | 1 2 2 1 Core . | . . . . Reactor . | . . . . Propulsion 6 | 2 2 . 2 Treads . | . . . . Leg 6 | 2 2 . 2 Wheel . | . . . . Hover . | . . . . Flight . | . . . . Utility 4 | 1 2 . 1 Device . | . . . . Storage 2 | 1 1 . . Processor 1 | . 1 . . Hackware . | . . . . Protection 1 | . . . 1 Artifact . | . . . . Weapon 14 | 2 7 . 5 Energy Gun 2 | 1 . . 1 Energy Cannon . | . . . . Ballistic Gun 8 | 1 4 . 3 Ballistic Cannon . | . . . . Launcher 1 | . . . 1 Special Weapon 3 | . 3 . . Impact Weapon . | . . . . Slashing Weapon . | . . . . Piercing Weapon . | . . . . Special Melee Weapon . | . . . . Unidentified Prototypes . | . . . . Parts Lost 6 | . . . 6 Power 1 | . . . 1 Propulsion 2 | . . . 2 Utility 1 | . . . 1 Weapon 2 | . . . 2 Highest Loss Streak 6 | . . . 6 To Critical Strikes 4 | . . . 4 Average Slot Usage (%) 99 | . 98 100 99 Engine 13 | . 14 14 13 Leg 28 | . 28 28 28 Storage 13 | . 13 14 14 Processor 13 | . 12 14 13 Energy Gun 13 | . 14 14 13 Ballistic Gun 12 | . 11 14 14 Special Weapon 1 | . 2 . . Naked Turns . | . . . . Heaviest Build 31 | 14 31 31 31 Greatest Support 26 | 20 26 26 26 Greatest Overweight (x) 1 | . 1 1 1 Average Overweight (x) . | . . 1 1 Largest Inventory Capacity 15 | 8 15 15 15 Average Capacity 14 | 7 14 15 15 Most Carried 15 | . 15 15 15 Average Carried 10 | . 9 14 12 Final Capacity 15 | 8 15 15 15 Final Carried 15 | . 12 15 6 Class Distribution -------------------- 100% | Mutant Dominant Class ---------------- Mutant | -10/Materials Mutant | -10/Mines Mutant | -10/Exiles Resources | -11 -10 -10 -10 ----------- Run | Jun Mat Min Exi Matter Collected 1028 | 374 553 60 41 Remotely . | . . . . Salvage Created 1308 | 326 931 37 14 Parts 104 | 37 59 8 . Haulers Intercepted 2 | . 2 . . Recyclers Shooed 6 | . 6 . . Parts Field Recycled . | . . . . Retrieved Matter . | . . . . Parts Self-Destructed . | . . . . Prevented . | . . . . Kills | -11 -10 -10 -10 ------- Run | Jun Mat Min Exi Combat Hostiles Destroyed 15 | . 12 3 . Guns 14 | . 11 3 . Cannons 1 | . 1 . . Classes Destroyed 10 | 3 6 . 1 Worker 12 | 4 8 . . Builder 3 | . 3 . . Tunneler 9 | 9 . . . Hauler 2 | . 2 . . Recycler 4 | 1 3 . . Operator 1 | . 1 . . Watcher 3 | . 3 . . Swarmer 9 | . 6 3 . Grunt 6 | . 6 . . Assembled 4 | . . . 4 Best Kill Streak 4 | 4 3 3 . Combat Bots Only 3 | . 3 3 . Max Kills in Single Turn 4 | 1 2 1 4 Gunslinging 1 | . 1 . . Exploded . | . . . . Melee . | . . . . Uniques/NPCs Destroyed 1 | . . . 1 EX-HEX (-10/Exiles) Combat | -11 -10 -10 -10 -------- Run | Jun Mat Min Exi Damage Taken 1019 | . 329 37 653 Core 262 | . 59 6 197 Absorbed by Shields . | . . . . Regen/Repaired (Parts) 45 | . 45 . . Core Remaining (%) 100 | 100 . . . Volleys Fired 246 | 38 181 4 23 Largest 2 | 2 2 2 2 Hottest 150 | 70 150 70 70 Shots Fired 484 | 76 354 8 46 Gun 461 | 76 332 8 45 Cannon . | . . . . Launcher 1 | . . . 1 Special 22 | . 22 . . Kinetic 225 | 38 151 4 32 Thermal 258 | 38 203 4 13 Explosive 1 | . . . 1 Electromagnetic . | . . . . Robot Hit Streak 23 | 9 9 6 23 Robot Miss Streak 5 | 5 5 1 1 Penetration Max . | . . . . Secondary Targets 2 | . 2 . . Max Gunslinging Chain 1 | . 1 . . Shots Hit Robots 208 | 40 120 6 42 Core Hits 79 | 15 45 4 15 Critical Kills 1 | . 1 . . Critical Parts Destroyed . | . . . . Critical Strikes 18 | 4 12 . 2 Burn 17 | 4 11 . 2 Destroy 1 | . 1 . . Melee Attacks . | . . . . Impact . | . . . . Slashing . | . . . . Piercing . | . . . . Sneak Attacks . | . . . . Combat Hostiles . | . . . . Follow-up Attacks . | . . . . Damage Inflicted 2709 | 474 1616 88 531 Guns 2352 | 474 1513 80 285 Cannons . | . . . . Explosions 246 | . . . 246 Melee . | . . . . Ramming 11 | . 3 8 . Kinetic 1232 | 176 744 39 273 Thermal 1220 | 298 869 41 12 Explosive 246 | . . . 246 Electromagnetic . | . . . . Impact . | . . . . Slashing . | . . . . Piercing . | . . . . Highest Corruption . | . . . . Average Corruption . | . . . . Corruption Purged . | . . . . Corruption Blocked . | . . . . Overload Shots . | . . . . Overflow Damage 6 | . . . 6 Projectiles . | . . . . Explosions 6 | . . . 6 Melee . | . . . . Knockbacks . | . . . . Impact . | . . . . Kinetic . | . . . . Secondary . | . . . . Self-Inflicted Damage . | . . . . Shots . | . . . . Rammed . | . . . . Targets Rammed 5 | . 1 4 . Kicked 5 | . 1 4 . Crushed . | . . . . Highest Temperature 324 | 72 324 36 144 Average Temperature 63 | 22 71 17 57 Received Heat Transfer 84 | . 78 . 6 Effects 2 | . 2 . . Energy Bleed 1 | . 1 . . Short Circuit 1 | . 1 . . Siege Activations . | . . . . Robots Corrupted . | . . . . Combat Hostiles . | . . . . Parts Fried . | . . . . Impact Corruptions . | . . . . Robots Melted . | . . . . Combat Hostiles . | . . . . Parts Melted 5 | 2 3 . . Heat Transferred 4673 | 1184 3234 111 144 Parts Sabotaged . | . . . . Parts Stolen . | . . . . Parts Stripped . | . . . . Power Chain Reactions . | . . . . Missiles Intercepted . | . . . . Alert | -11 -10 -10 -10 ------- Run | Jun Mat Min Exi Peak Influence 208 | 70 208 166 . Initial 81 | . 45 81 . Average 64 | 30 80 44 . Maximum Alert Level 1 | . 1 . . Low Security (%) 95 | 100 92 100 . Level 1 4 | . 7 . . Level 2 . | . . . . Level 3 . | . . . . Level 4 . | . . . . Level 5 . | . . . . High Security . | . . . . Max Security . | . . . . Squads Dispatched 2 | . 2 . . Investigation 1 | . 1 . . Extermination . | . . . . Reinforcement 1 | . 1 . . Assault . | . . . . Garrison . | . . . . Intercept . | . . . . Searches Triggered . | . . . . Construction Impeded . | . . . . Haulers Reinforced . | . . . . Active Scanning Responses . | . . . . Cargo Convoy Interrupts . | . . . . Stealth | -11 -10 -10 -10 --------- Run | Jun Mat Min Exi Distress Signals 2 | . 2 . . Communications Jammed . | . . . . Distress Signals . | . . . . Times Spotted 24 | . 18 2 4 Peak Tracking Total 5 | . 3 2 5 Tactical Retreats 1 | . 1 . . Traps | -11 -10 -10 -10 ------- Run | Jun Mat Min Exi Traps Triggered 1 | . 1 . . Indirectly . | . . . . Trap Hack Attempts . | . . . . Triggered . | . . . . Disarmed . | . . . . Reprogrammed . | . . . . Reused . | . . . . Traps Extracted . | . . . . Installed . | . . . . Triggered . | . . . . Machines | -11 -10 -10 -10 ---------- Run | Jun Mat Min Exi Machines Disabled 10 | . 7 . 3 Max in Single Turn 3 | . 3 . 1 Machines Repaired . | . . . . Machines Sabotaged . | . . . . Overloaded Fab Kills . | . . . . Hacking | -11 -10 -10 -10 --------- Run | Jun Mat Min Exi Machines Accessed 10 | . 9 . 1 Terminals 7 | . 7 . . Fabricators . | . . . . Repair Stations 1 | . 1 . . Recycling Units 1 | . 1 . . Scanalyzers . | . . . . Garrison Access . | . . . . Total Hacks 26 | . 25 . 1 Successful 17 | . 16 . 1 Failed 8 | . 8 . . Catastrophic 1 | . 1 . . Database Lockouts 1 | . 1 . . Manual 17 | . 16 . 1 Terminals 20 | . 20 . . Fabricators . | . . . . Repair Stations 3 | . 3 . . Recycling Units 2 | . 2 . . Scanalyzers . | . . . . Garrison Access . | . . . . Terminal Hacks 12 | . 11 . 1 Robot Analysis 6 | . 6 . . Prototype ID Bank 3 | . 3 . . Alert Level 1 | . 1 . . Locate Traps 1 | . 1 . . EX-Prototype ID Bank 1 | . . . 1 Fabricator Hacks . | . . . . Repair Station Hacks 2 | . 2 . . Scan Component 1 | . 1 . . Repair 1 | . 1 . . Recycling Unit Hacks 1 | . 1 . . Retrieve Components 1 | . 1 . . Scanalyzer . | . . . . Garrison Access Hacks . | . . . . Unauthorized Hacks 2 | . 2 . . Terminals 2 | . 2 . . Botnet 2 | . 2 . . Fabricators . | . . . . Repair Stations . | . . . . Recycling Units . | . . . . Scanalyzers . | . . . . Garrison Access . | . . . . Data Cores Recovered . | . . . . Used . | . . . . Hacking Detections 7 | . 7 . . Full Trace Events 1 | . 1 . . Feedback Events . | . . . . Feedback Blocked . | . . . . Robot Schematics Acquired . | . . . . Robots Built . | . . . . Authchips . | . . . . Time . | . . . . Total Robot Build Rating . | . . . . Part Schematics Acquired . | . . . . Parts Built . | . . . . Authchips . | . . . . Time . | . . . . Total Part Build Rating . | . . . . Parts Repaired 1 | . 1 . . Time 26 | . 26 . . Parts Recycled . | . . . . Recycled Matter . | . . . . Retrieved Matter . | . . . . Retrieved Components 10 | . 10 . . Parts Scanalyzed . | . . . . Part Schematics Acquired . | . . . . Parts Damaged . | . . . . Bothacking | -11 -10 -10 -10 ------------ Run | Jun Mat Min Exi Used RIF Installer . | . . . . Robots Hacked . | . . . . Non-combat . | . . . . Combat . | . . . . Robot Hacks Applied . | . . . . Relay Couplers Released . | . . . . Fabnet Peak Effective % . | . . . . Robots Rewired . | . . . . Allies Hacked . | . . . . Hacks Repelled . | . . . . Allies | -11 -10 -10 -10 -------- Run | Jun Mat Min Exi Total Allies 3 | . . 3 . Largest Group 3 | . . 3 3 Highest-Rated Group 40 | . . 40 40 Highest-Rated Ally 16 | . . 16 16 Total Orders . | . . . . Ally Attacks 52 | . . . 52 Total Damage 171 | . . . 171 Kills 4 | . . . 4 Allies Corrupted . | . . . . Allies Melted . | . . . . Intel | -11 -10 -10 -10 ------- Run | Jun Mat Min Exi Robot Analysis Total 6 | . 6 . . Derelict Logs Recovered 1 | . . 1 . Drone Launches . | . . . . Drone Recoveries . | . . . . Exploration | -11 -10 -10 -10 ------------- Run | Jun Mat Min Exi Turns Passed 5874 | 326 2633 1478 1437 Spaces Moved 2596 | 173 995 729 699 Core 5 | 5 . . . Treads . | . . . . Legs 2591 | 168 995 729 699 Wheels . | . . . . Hover . | . . . . Flight . | . . . . Fastest Speed 50 | 50 120 190 190 Average Speed 184 | 117 189 190 190 Slowest Speed 190 | 120 190 190 190 Overloaded Moves . | . . . . Propulsion Burnouts . | . . . . Robots Hopped . | . . . . Cave-ins Triggered . | . . . . Exploration Rate (%) 67 | 6 99 98 67 Regions Visited 3 Branch Regions 2 Pre-discovered Areas . | . . . . Known Exits Taken . | . . . . Unknown Exits Taken 3 | 1 1 1 . Scrap Searched 1 | . . 1 . Spaces Dug 4 | . 4 . . Terrain Destroyed 87 | . 79 . 8 Melee . | . . . . Projectile 5 | . 5 . . AOE 82 | . 74 . 8 Terrain Rammed . | . . . . Walls Destroyed . | . . . . Machines Disabled . | . . . . Actions | -11 -10 -10 -10 --------- Run | Jun Mat Min Exi Total 3152 | 216 1343 815 778 Wait 194 | . 134 56 4 Move 2593 | 172 994 728 699 Hop . | . . . . Pick Up 45 | . 14 11 20 Fast Attach 11 | 6 3 2 . Attach 6 | . . . 6 Detach . | . . . . Swap 13 | . 10 . 3 Drop 39 | . 6 10 23 Fire 246 | 38 181 4 23 Melee . | . . . . Ram . | . . . . Kick 5 | . 1 4 . Crush . | . . . . Escape Stasis . | . . . . Rewire . | . . . . Trap . | . . . . Miscellaneous . | . . . . Route ------- -11/Junkyard -10/Materials (discovered 4 exits: [*Mat x3] / [*Min]) -10/Mines (discovered 3 exits: [*Mat x2] / *Exi) -10/Exiles (discovered 1 exit: [*Min]) History --------- Turn | Location | Event 2 | -11/Junkyard | Met Revision 17 5 | -11/Junkyard | Discovered new exit (range 14) 327 | -11/Junkyard | Entered Materials 328 | -10/Materials | Build established: Mutant 754 | -10/Materials | Discovered new exit (range 10) 1147 | -10/Materials | Discovered new exit (range 6) 1204 | -10/Materials | Repaired Assault Rifle 1455 | -10/Materials | Discovered new exit (range 13) 1666 | -10/Materials | Discovered new exit (range 3) 1941 | -10/Materials | Central database locked down 2960 | -10/Materials | Entered Mines 3048 | -10/Mines | Assembled infested the area 3097 | -10/Mines | YI-UF0 nonchalantly dropped a Grenade Launcher on the ground 3157 | -10/Mines | Discovered new exit (range 4) 3220 | -10/Mines | Discovered new exit (range 5) 3261 | -10/Mines | Found a damaged Exp. Sensor Array with a note attached 3271 | -10/Mines | Found Prototype Device 3291 | -10/Mines | Discovered new exit (range 5) 3434 | -10/Mines | Learned Materials stockpile data 4076 | -10/Mines | Assisted by bots powering up and referring to "LRC-V3" 4438 | -10/Mines | Entered Exiles 4438 | -10/Exiles | Accompanied by 3 allies 4486 | -10/Exiles | Met 8R-AWN 4518 | -10/Exiles | Met EX-HEX 4608 | -10/Exiles | Met EX-DEC 4803 | -10/Exiles | Met EX-BIN 4845 | -10/Exiles | Aligned with FarCom system 4846 | -10/Exiles | Given EX-Vault access code 4892 | -10/Exiles | Opened EX-Vault 4902 | -10/Exiles | Found Deploy-a-Sentry 4904 | -10/Exiles | Found Deploy-a-Sentry 4907 | -10/Exiles | Found Deploy-a-Sentry 4958 | -10/Exiles | Warned to stay clear of 0b10 Research branches 5438 | -10/Exiles | Discovered new exit (range 15) 5793 | -10/Exiles | Attacked by the Exiles 5806 | -10/Exiles | Allies destroyed EX-HEX 5828 | -10/Exiles | Core integrity fell below 50% 5859 | -10/Exiles | Core integrity fell below 20% 5875 | -10/Exiles | Destroyed by 8R-AWN with 8R-AWN's Boregun Last Messages --------------- 05843_ HV Slug penetrates Earth. 05845_ Penetrated by HV Slug. 05845_ Lgt. Assault Rifle destroyed. 05849_ HV Slug penetrates Wall. 05849_ Penetrated by HV Slug. 05854_ HV Slug penetrates Wall. 05854_ 8R-AWN suffers critical hit (Burn). 05858_ Wall collapses. 05858_ Penetrated by HV Slug. 05858_ Critical hit (Destroy). 05858_ Imp. Ion Engine destroyed. 05862_ Penetrated by HV Slug. 05862_ HV Slug penetrates Wall. 05862_ HV Slug penetrates Assembled Analyzer. 05862_ Assembled Analyzer disabled. 05866_ Penetrated by HV Slug. 05866_ Targeting Computer destroyed. 05871_ Penetrated by HV Slug. 05871_ Critical hit (Destroy). 05875_ Penetrated by HV Slug. Map ----- +----------------------------------------------------+ | """#????????????????????????????????????? | | """#????????????????????????????????????? | | """#????????????????????????????????????? | | """"????????????????????????????????????? | | """#????????????????????????????????????? | | "X" """?????????????????????????????????????? | | """ #????????????????????????????????????? | | """""""""#????????????????????????????????????? | | ###########????????????????????????????????????? | | #??????????????????????????????????????????????? | | #??????????????????????????????????????????????? | | ##?????????????????????????????????????????????? | | ##???###########??????????????????????????????? | | #####"""""""""##?????????????????????????????? | | " """ """"##????????????????????????????? | | "" " #????????????????????????????? | | " """#????????????????????????????? | | "a"#???????????#####????????????? | | " "##?????????##" #????????????? | | ""###???????#" #????????????? | | ! " "#??????##" ##???????????? | | "" !*! "#????### ###????????## | | ###""" !!%!= ##???# ########## | | ??##""" !!! = ;#### #""""## | | ???#"""" *%!g ;## | | ??##"" [! %@g ## | | ###"""" ! #### | | """ ""#?#"""""#### | | " % # ""##?#######??#### | | ######??????????????#### | | ##??????????????????????? | | " ##???????????????????????? | | "" "" ""#????????????????????????? | | ##""" " " ""#"% %%%%"##????????????????????????? | | ######""" """##" #?????????????????????????? | | #????###""""### # #??????????????????????????? | | ####???######?########???????????????????????????? | | "!#?????????????????????????????????????????????? | | !#?????????????????????????????????????????????? | | "#?????????????????????????????????????????????? | | "!"#?????????????????????????????????????????????? | | ####?????????????????????????????????????????????? | | ?????????????????????????????????????????????????? | | ?????????????????????????????????????????????????? | | ?????????????????????????????????????????????????? | | ?????????????????????????????????????????????????? | | ?????????????????????????????????????????????????? | | ?????????????????????????????????????????????????? | | ?????????????????????????????????????????????????? | | ?????????????????????????????????????????????????? | +----------------------------------------------------+ Best States ------------- Heat Dissipation 25 Energy Generation 14 Energy Capacity 265 Matter Stores 300 Matter Capacity 300 Sight Range 16 Terrain Scan Density 10 Armor Coverage 150 Evasion (%) 55 Targeting Accuracy 5 Item Schematics ----------------- None Robot Schematics ------------------ None Fabricated ------------ Nothing Alien Tech Used ----------------- None Achievements -------------- None Challenges ------------ None Game ------ Seed SwarmTransmissionBoomstick Manual? 0 Play Time 00:27:23 Cumulative 64.3 hours Start 2023.09.11 @ 19:04:23 End 2023.11.24 @ 14:23:32 Sessions 3 Manual Loads 0 Difficulty Rogue Special Mode None Game No. 49 Rogue 49 Adventurer 0 Explorer 0 Win Type - Total 0 Types 0/0/0/0/0/0/0/0/0 Lore% 32 Gallery% 40 Achievement% 33 Wizard Run 0 Options --------- ASCII 0 Keyboard 0 Movement Mouse Keybinds 0 Fullscreen 1 Font 18/SmallcapsGlow Map View 76x50 Tactical HUD 1 Map Filters NONE Filters NONE Steam X RUN: 7dc0a1f6-821b-47c1-a6d3-bb8915c9788e